[Event "Czech-ch U18-20 Open 2022"]
[Site "Spindleruv Mlyn"]
[Date "2022.03.14"]
[Round "5.6"]
[White "Stalmach, Richard"]
[Black "Kusa, Jakub"]
[Result "0-1"]
[ECO "D36"]
[WhiteElo "2302"]
[BlackElo "2298"]
[Annotator "ChessBase"]
[PlyCount "100"]
[EventDate "2022.03.10"]
[EventType "tourn"]
[EventCountry "CZE"]
[SourceTitle "playchess.com"]
[Source "ChessBase"]
[SourceQuality "1"]
[TimeControl "40/5400+30:1800+30"]

1. d4 {[%emt 0:00:03]} Nf6 {[%emt 0:00:20]} 2. c4 {[%emt 0:00:07]} e6 {[%emt 0:00:07]} 3. Nc3 {[%emt 0:00:06]} d5 {[%emt 0:00:11]} 4. cxd5 {[%emt 0:00:06]} exd5 {[%emt 0:00:08]} 5. Bg5 {[%emt 0:00:12]} Nbd7 {[%emt 0:00:42]} 6. e3 {[%emt 0:00:16]} c6 {[%emt 0:00:17]} 7. Bd3 {[%emt 0:00:07]} Be7 {[%emt 0:00:30]} 8. Nge2 {[%emt 0:00:07]} O-O {[%emt 0:01:26]} 9. Qc2 {[%emt 0:00:59]} Re8 {[%emt 0:00:47]} 10. O-O {[%emt 0:00:46]} h6 {[%emt 0:01:35]} 11. Bh4 {[%emt 0:02:39]} Nh5 {[%emt 0:01:53]} 12. Bxe7 {[%emt 0:01:06]} Qxe7 {[%emt 0:00:06]} 13. Rae1 {[%emt 0:09:19]} Nb6 {[%emt 0:03:42]} 14. Nc1 {[%emt 0:03:23]} Be6 {[%emt 0:03:30]} 15. Nb3 {[%emt 0:01:14]} Nc8 {[%emt 0:03:46]} 16. f3 {[%emt 0:07:25]} Nd6 {[%emt 0:04:57]} 17. e4 {[%emt 0:03:52]} Nf4 {[%emt 0:03:10]} 18. e5 {[%emt 0:01:47]} Nc4 {[%emt 0:02:14]} 19. Bxc4 {[%emt 0:10:18]} dxc4 {[%emt 0:00:08]} 20. Nc5 {[%emt 0:00:10]} Rad8 {[%emt 0:18:09]} 21. Rd1 {[%emt 0:12:18]} b6 {[%emt 0:08:57]} 22. N5e4 {[%emt 0:01:33]} Nd3 {[%emt 0:02:08]} 23. Ne2 {[%emt 0:12:16]} Bf5 {[%emt 0:04:12]} 24. N4g3 {[%emt 0:04:28]} Bh7 {[%emt 0:01:44]} 25. Qxc4 {[%emt 0:04:57]} Nxb2 {[%emt 0:00:17]} 26. Qxc6 {[%emt 0:00:05]} Nxd1 {[%emt 0:00:22]} 27. Rxd1 {[%emt 0:00:04]} Qa3 {[%emt 0:03:04]} 28. f4 {[%emt 0:02:37]} Rc8 {[%emt 0:02:51]} 29. Qd7 {[%emt 0:02:18]} Qe3+ {[%emt 0:04:37]} 30. Kh1 {[%emt 0:01:29]} Bd3 {[%emt 0:02:42]} 31. Ng1 {[%emt 0:02:37]} Red8 {[%emt 0:01:57]} 32. Qxa7 {[%emt 0:02:08]} Bc2 {[%emt 0:01:10]} 33. Rf1 {[%emt 0:00:41]} Qxd4 {[%emt 0:00:23]} 34. f5 {[%emt 0:00:42]} Qxe5 {[%emt 0:03:06]} 35. Qxb6 {[%emt 0:00:37]} Bd3 {[%emt 0:02:06]} 36. Rd1 {[%emt 0:00:13]} Qc5 {[%emt 0:01:40]} 37. Qb2 {[%emt 0:02:33]} Qc2 {[%emt 0:01:10]} 38. Qxc2 {[%emt 0:00:40]} Bxc2 {[%emt 0:00:12]} 39. Rxd8+ {[%emt 0:01:40]} Rxd8 {[%emt 0:00:01]} 40. h3 {[%emt 0:00:09]} Ra8 {[%emt 0:00:15]} 41. Nf3 {[%emt 0:30:09]} Rxa2 {[%emt 0:30:27]} 42. Kh2 {[%emt 0:00:26]} Ba4 {[%emt 0:02:08]} 43. Ne5 {[%emt 0:00:14]} Rc2 {[%emt 0:01:08]} 44. f6 {[%emt 0:04:04]} g6 {[%emt 0:01:01]} 45. Ng4 {[%emt 0:01:26]} Bc6 {[%emt 0:01:22]} 46. Ne3 {[%emt 0:00:05]} Ra2 {[%emt 0:02:01]} 47. Kg1 {[%emt 0:00:24]} h5 {[%emt 0:00:40]} 48. Ngf1 {[%emt 0:00:55]} Re2 {[%emt 0:00:23]} 49. h4 {[%emt 0:00:46]} Kf8 {[%emt 0:00:38]} 50. Kh2 {[%emt 0:00:05]} Rf2 {[%emt 0:00:20]} 0-1

[Event "Czech-ch U18-20 Open 2022"]
[Site "Spindleruv Mlyn"]
[Date "2022.03.14"]
[Round "6.1"]
[White "Mica, Marek"]
[Black "Kusa, Jakub"]
[Result "1/2-1/2"]
[ECO "D36"]
[WhiteElo "2272"]
[BlackElo "2298"]
[Annotator "ChessBase"]
[PlyCount "65"]
[EventDate "2022.03.10"]
[EventType "tourn"]
[EventCountry "CZE"]
[SourceTitle "playchess.com"]
[Source "ChessBase"]
[SourceQuality "1"]
[TimeControl "40/5400+30:1800+30"]

1. d4 {[%emt 0:00:03]} Nf6 {[%emt 0:00:11]} 2. c4 {[%emt 0:00:06]} e6 {[%emt 0:00:06]} 3. Nc3 {[%emt 0:00:08]} d5 {[%emt 0:00:15]} 4. cxd5 {[%emt 0:00:05]} exd5 {[%emt 0:00:06]} 5. Bg5 {[%emt 0:00:10]} Nbd7 {[%emt 0:00:28]} 6. e3 {[%emt 0:00:14]} c6 {[%emt 0:00:27]} 7. Bd3 {[%emt 0:00:12]} Be7 {[%emt 0:00:20]} 8. Nge2 {[%emt 0:00:19]} O-O {[%emt 0:01:34]} 9. Qc2 {[%emt 0:00:23]} Re8 {[%emt 0:00:44]} 10. O-O {[%emt 0:00:16]} h6 {[%emt 0:02:01]} 11. Bh4 {[%emt 0:00:08]} Nh5 {[%emt 0:00:42]} 12. Bxe7 {[%emt 0:00:08]} Qxe7 {[%emt 0:00:06]} 13. Rae1 {[%emt 0:00:24]} Nb6 {[%emt 0:03:45]} 14. Nc1 {[%emt 0:00:11]} Be6 {[%emt 0:04:45]} 15. Nb3 {[%emt 0:00:23]} Rad8 {[%emt 0:00:32]} 16. Nc5 {[%emt 0:00:21]} Nc8 {[%emt 0:06:27]} 17. f3 {[%emt 0:00:36]} b6 {[%emt 0:01:55]} 18. Nxe6 {[%emt 0:00:49]} Qxe6 {[%emt 0:01:11]} 19. b3 {[%emt 0:09:06]} Qd6 {[%emt 0:08:47]} 20. Qf2 {[%emt 0:03:31]} Re7 {[%emt 0:02:53]} 21. g4 {[%emt 0:02:37]} Nf6 {[%emt 0:00:38]} 22. Ne2 {[%emt 0:01:21]} c5 {[%emt 0:05:52]} 23. Ng3 {[%emt 0:05:39]} g6 {[%emt 0:00:50]} 24. h4 {[%emt 0:02:51]} Rde8 {[%emt 0:04:49]} 25. Kg2 {[%emt 0:09:04]} cxd4 {[%emt 0:05:06]} 26. exd4 {[%emt 0:00:11]} Rxe1 {[%emt 0:02:09]} 27. Rxe1 {[%emt 0:00:22]} Rxe1 {[%emt 0:00:45]} 28. Qxe1 {[%emt 0:00:12]} Ne7 {[%emt 0:02:16]} 29. Qe3 {[%emt 0:02:02]} Kg7 {[%emt 0:01:05]} 30. g5 {[%emt 0:11:12]} hxg5 {[%emt 0:04:46]} 31. hxg5 {[%emt 0:00:10]} Ne8 {[%emt 0:01:16]} 32. f4 {[%emt 0:00:54]} Qe6 {[%emt 0:01:42]} 33. Qxe6 {[%emt 0:06:08]} 1/2-1/2

[Event "Czech-ch U18-20 Open 2022"]
[Site "Spindleruv Mlyn"]
[Date "2022.03.14"]
[Round "6.2"]
[White "Hlavina, Matous"]
[Black "Stalmach, Richard"]
[Result "1/2-1/2"]
[ECO "A01"]
[WhiteElo "2112"]
[BlackElo "2302"]
[Annotator "ChessBase"]
[PlyCount "59"]
[EventDate "2022.03.10"]
[EventType "tourn"]
[EventCountry "CZE"]
[SourceTitle "playchess.com"]
[Source "ChessBase"]
[SourceQuality "1"]
[TimeControl "40/5400+30:1800+30"]

1. b3 {[%emt 0:02:15]} e5 {[%emt 0:02:12]} 2. Bb2 {[%emt 0:00:06]} Nc6 {[%emt 0:00:55]} 3. c4 {[%emt 0:01:35]} g6 {[%emt 0:02:40]} 4. Nf3 {[%emt 0:01:33]} Bg7 {[%emt 0:00:08]} 5. e3 {[%emt 0:01:32]} d6 {[%emt 0:01:20]} 6. Be2 {[%emt 0:01:52]} Nge7 {[%emt 0:03:03]} 7. d4 {[%emt 0:01:13]} O-O {[%emt 0:00:25]} 8. Nc3 {[%emt 0:04:40]} a6 {[%emt 0:05:35]} 9. Qd2 {[%emt 0:01:23]} Bg4 {[%emt 0:02:16]} 10. Nxe5 {[%emt 0:07:15]} dxe5 {[%emt 0:04:03]} 11. Bxg4 {[%emt 0:00:59]} exd4 {[%emt 0:00:12]} 12. exd4 {[%emt 0:00:57]} Nxd4 {[%emt 0:00:24]} 13. O-O-O {[%emt 0:08:32]} c5 {[%emt 0:03:06]} 14. Rhe1 {[%emt 0:01:59]} Nec6 {[%emt 0:02:15]} 15. Nd5 {[%emt 0:01:52]} b5 {[%emt 0:01:00]} 16. Be2 {[%emt 0:01:18]} a5 {[%emt 0:07:02]} 17. cxb5 {[%emt 0:04:18]} Qxd5 {[%emt 0:01:33]} 18. Bf3 {[%emt 0:05:07]} Qd6 {[%emt 0:06:14]} 19. Bxc6 {[%emt 0:01:56]} Ra7 {[%emt 0:03:30]} 20. Kb1 {[%emt 0:05:10]} a4 {[%emt 0:02:17]} 21. b4 {[%emt 0:02:23]} Qxh2 {[%emt 0:06:38]} 22. g3 {[%emt 0:02:31]} Qh5 {[%emt 0:04:54]} 23. bxc5 {[%emt 0:04:51]} Nxc6 {[%emt 0:00:06]} 24. Bxg7 {[%emt 0:01:00]} Kxg7 {[%emt 0:02:46]} 25. Qc3+ {[%emt 0:00:51]} Kg8 {[%emt 0:00:04]} 26. bxc6 {[%emt 0:00:11]} Rc7 {[%emt 0:01:07]} 27. Rd6 {[%emt 0:03:15]} Qf5+ {[%emt 0:01:14]} 28. Ka1 {[%emt 0:07:57]} Qxf2 {[%emt 0:01:11]} 29. Red1 {[%emt 0:00:49]} Qe2 {[%emt 0:18:21]} 30. Rd8 {[%emt 0:05:24]} 1/2-1/2

[Event "Czech-ch U18-20 Open 2022"]
[Site "Spindleruv Mlyn"]
[Date "2022.03.14"]
[Round "6.3"]
[White "Frank, Adam"]
[Black "Lajbl, Jan"]
[Result "1-0"]
[ECO "B15"]
[WhiteElo "2270"]
[BlackElo "2218"]
[Annotator "ChessBase"]
[PlyCount "117"]
[EventDate "2022.03.10"]
[EventType "tourn"]
[EventCountry "CZE"]
[SourceTitle "playchess.com"]
[Source "ChessBase"]
[SourceQuality "1"]
[TimeControl "40/5400+30:1800+30"]

1. e4 {[%emt 0:00:02]} c6 {[%emt 0:08:38]} 2. d4 {[%emt 0:00:06]} d5 {[%emt 0:00:07]} 3. Nd2 {[%emt 0:00:04]} dxe4 {[%emt 0:00:05]} 4. Nxe4 {[%emt 0:00:04]} Nf6 {[%emt 0:00:03]} 5. Nxf6+ {[%emt 0:00:05]} exf6 {[%emt 0:00:02]} 6. c3 {[%emt 0:00:06]} Bd6 {[%emt 0:00:02]} 7. Bd3 {[%emt 0:00:04]} O-O {[%emt 0:00:04]} 8. Qc2 {[%emt 0:00:03]} Re8+ {[%emt 0:00:03]} 9. Ne2 {[%emt 0:00:04]} h5 {[%emt 0:00:02]} 10. Be3 {[%emt 0:00:04]} Nd7 {[%emt 0:00:37]} 11. O-O-O {[%emt 0:00:06]} b5 {[%emt 0:00:05]} 12. g4 {[%emt 0:20:04]} h4 {[%emt 0:04:55]} 13. Rhg1 {[%emt 0:02:20]} Nf8 {[%emt 0:04:46]} 14. Be4 {[%emt 0:11:27]} Qc7 {[%emt 0:05:52]} 15. g5 {[%emt 0:02:02]} f5 {[%emt 0:00:50]} 16. Bxf5 {[%emt 0:00:13]} Bxf5 {[%emt 0:00:18]} 17. Qxf5 {[%emt 0:00:03]} Ng6 {[%emt 0:00:08]} 18. h3 {[%emt 0:03:13]} Re6 {[%emt 0:06:08]} 19. Rg4 {[%emt 0:05:37]} Rae8 {[%emt 0:02:11]} 20. Kb1 {[%emt 0:00:36]} Qe7 {[%emt 0:03:25]} 21. Nc1 {[%emt 0:05:11]} Re4 {[%emt 0:07:59]} 22. Rdg1 {[%emt 0:05:54]} Qe6 {[%emt 0:02:06]} 23. Qxe4 {[%emt 0:00:11]} Qxe4+ {[%emt 0:00:06]} 24. Rxe4 {[%emt 0:00:03]} Rxe4 {[%emt 0:00:05]} 25. Kc2 {[%emt 0:03:15]} Ne7 {[%emt 0:06:35]} 26. Kd3 {[%emt 0:02:31]} Re6 {[%emt 0:00:05]} 27. Rg4 {[%emt 0:05:00]} Nf5 {[%emt 0:00:33]} 28. Ne2 {[%emt 0:00:06]} Rg6 {[%emt 0:01:16]} 29. Bf4 {[%emt 0:07:56]} Be7 {[%emt 0:04:34]} 30. Ng1 {[%emt 0:01:32]} Re6 {[%emt 0:02:12]} 31. Nf3 {[%emt 0:00:31]} c5 {[%emt 0:01:53]} 32. Nxh4 {[%emt 0:03:30]} c4+ {[%emt 0:01:05]} 33. Kd2 {[%emt 0:00:37]} Nxh4 {[%emt 0:01:21]} 34. Rxh4 {[%emt 0:00:08]} b4 {[%emt 0:00:09]} 35. d5 {[%emt 0:11:44]} Ra6 {[%emt 0:00:51]} 36. Kc2 {[%emt 0:00:11]} f6 {[%emt 0:05:43]} 37. d6 {[%emt 0:00:43]} Bxd6 {[%emt 0:01:44]} 38. Bxd6 {[%emt 0:00:03]} Rxd6 {[%emt 0:00:22]} 39. Rxc4 {[%emt 0:00:13]} fxg5 {[%emt 0:01:33]} 40. Rxb4 {[%emt 0:00:38]} Rf6 {[%emt 0:00:04]} 41. Rg4 {[%emt 0:30:54]} Rxf2+ {[%emt 0:30:19]} 42. Kb3 {[%emt 0:00:03]} Rf3 {[%emt 0:01:06]} 43. Rxg5 {[%emt 0:00:04]} Rxh3 {[%emt 0:00:05]} 44. a4 {[%emt 0:01:10]} Rh6 {[%emt 0:00:15]} 45. Kc4 {[%emt 0:01:09]} Rc6+ {[%emt 0:00:56]} 46. Rc5 {[%emt 0:00:13]} Ra6 {[%emt 0:01:55]} 47. a5 {[%emt 0:00:07]} Kf7 {[%emt 0:00:22]} 48. Kb5 {[%emt 0:00:23]} Re6 {[%emt 0:00:33]} 49. Rc7+ {[%emt 0:01:47]} Re7 {[%emt 0:00:06]} 50. Rxe7+ {[%emt 0:01:48]} Kxe7 {[%emt 0:00:04]} 51. Kc5 {[%emt 0:00:02]} g5 {[%emt 0:02:24]} 52. Kd5 {[%emt 0:00:06]} g4 {[%emt 0:01:06]} 53. Ke4 {[%emt 0:00:03]} g3 {[%emt 0:01:13]} 54. Kf3 {[%emt 0:00:03]} Kd6 {[%emt 0:00:17]} 55. b4 {[%emt 0:00:04]} Kd5 {[%emt 0:00:43]} 56. Kxg3 {[%emt 0:00:04]} Kc4 {[%emt 0:02:24]} 57. Kf3 {[%emt 0:00:06]} a6 {[%emt 0:01:21]} 58. Ke2 {[%emt 0:00:03]} Kxc3 {[%emt 0:00:11]} 59. b5 {[%emt 0:00:04]} 1-0

[Event "Czech-ch U18-20 Open 2022"]
[Site "Spindleruv Mlyn"]
[Date "2022.03.14"]
[Round "6.5"]
[White "Mladek, Richard"]
[Black "Gloser, David"]
[Result "1-0"]
[ECO "D32"]
[WhiteElo "2374"]
[BlackElo "2238"]
[Annotator "ChessBase"]
[PlyCount "43"]
[EventDate "2022.03.10"]
[EventType "tourn"]
[EventCountry "CZE"]
[SourceTitle "playchess.com"]
[Source "ChessBase"]
[SourceQuality "1"]
[TimeControl "40/5400+30:1800+30"]

1. d4 {[%emt 0:00:01]} d5 {[%emt 0:00:06]} 2. c4 {[%emt 0:00:05]} e6 {[%emt 0:00:03]} 3. Nf3 {[%emt 0:00:07]} Nf6 {[%emt 0:00:04]} 4. Nc3 {[%emt 0:00:05]} c5 {[%emt 0:00:04]} 5. cxd5 {[%emt 0:00:51]} exd5 {[%emt 0:00:05]} 6. Bg5 {[%emt 0:01:07]} Be6 {[%emt 0:00:11]} 7. Bxf6 {[%emt 0:00:33]} Qxf6 {[%emt 0:00:25]} 8. e4 {[%emt 0:00:05]} dxe4 {[%emt 0:01:21]} 9. Nxe4 {[%emt 0:01:49]} Qf4 {[%emt 0:07:57]} 10. Bb5+ {[%emt 0:01:33]} Nc6 {[%emt 0:09:03]} 11. Qe2 {[%emt 0:00:33]} cxd4 {[%emt 0:08:22]} 12. O-O {[%emt 0:01:31]} Be7 {[%emt 0:02:41]} 13. Nxd4 {[%emt 0:00:24]} Bd7 {[%emt 0:10:42]} 14. Nxc6 {[%emt 0:12:19]} Bxc6 {[%emt 0:10:49]} 15. Ng3 {[%emt 0:11:37]} Kf8 {[%emt 0:06:11]} 16. Rac1 {[%emt 0:07:01]} h5 {[%emt 0:02:43]} 17. Bxc6 {[%emt 0:03:30]} bxc6 {[%emt 0:00:07]} 18. Rfe1 {[%emt 0:04:22]} Bd6 {[%emt 0:06:56]} 19. Rc4 {[%emt 0:03:41]} Qf6 {[%emt 0:05:17]} 20. Rxc6 {[%emt 0:03:09]} Rd8 {[%emt 0:01:24]} 21. Nf5 {[%emt 0:13:23]} g6 {[%emt 0:03:31]} 22. Rxd6 {[%emt 0:00:12]} 1-0

[Event "Czech-ch U18-20 Open 2022"]
[Site "Spindleruv Mlyn"]
[Date "2022.03.14"]
[Round "6.6"]
[White "Vojta, Jakub"]
[Black "Svanda, Ondrej"]
[Result "1/2-1/2"]
[ECO "B36"]
[WhiteElo "2406"]
[BlackElo "2303"]
[Annotator "ChessBase"]
[PlyCount "60"]
[EventDate "2022.03.10"]
[EventType "tourn"]
[EventCountry "CZE"]
[SourceTitle "playchess.com"]
[Source "ChessBase"]
[SourceQuality "1"]
[TimeControl "40/5400+30:1800+30"]

1. Nf3 {[%emt 0:00:05]} c5 {[%emt 0:01:42]} 2. c4 {[%emt 0:00:05]} g6 {[%emt 0:00:10]} 3. d4 {[%emt 0:00:03]} cxd4 {[%emt 0:00:08]} 4. Nxd4 {[%emt 0:00:03]} Nf6 {[%emt 0:00:25]} 5. Nc3 {[%emt 0:00:05]} Nc6 {[%emt 0:00:04]} 6. e4 {[%emt 0:00:05]} d6 {[%emt 0:00:07]} 7. Be2 {[%emt 0:00:51]} Nxd4 {[%emt 0:00:06]} 8. Qxd4 {[%emt 0:00:03]} Bg7 {[%emt 0:00:01]} 9. Be3 {[%emt 0:04:37]} O-O {[%emt 0:00:14]} 10. Qd2 {[%emt 0:00:45]} a5 {[%emt 0:00:01]} 11. f3 {[%emt 0:09:42]} a4 {[%emt 0:00:02]} 12. Rc1 {[%emt 0:00:48]} Qa5 {[%emt 0:01:47]} 13. Nb5 {[%emt 0:01:17]} Qxd2+ {[%emt 0:15:09]} 14. Kxd2 {[%emt 0:00:34]} Bd7 {[%emt 0:00:02]} 15. Nc3 {[%emt 0:16:34]} Rfc8 {[%emt 0:01:52]} 16. Rc2 {[%emt 0:00:26]} Bc6 {[%emt 0:12:46]} 17. Nd5 {[%emt 0:01:47]} Nxd5 {[%emt 0:07:11]} 18. cxd5 {[%emt 0:01:26]} Bd7 {[%emt 0:00:01]} 19. Rhc1 {[%emt 0:01:12]} Kf8 {[%emt 0:00:01]} 20. Rxc8+ {[%emt 0:03:12]} Rxc8 {[%emt 0:00:06]} 21. Rxc8+ {[%emt 0:00:17]} Bxc8 {[%emt 0:00:02]} 22. Kc2 {[%emt 0:01:26]} Bd7 {[%emt 0:00:10]} 23. Bb6 {[%emt 0:05:29]} f5 {[%emt 0:00:53]} 24. Ba5 {[%emt 0:01:13]} fxe4 {[%emt 0:00:32]} 25. fxe4 {[%emt 0:00:05]} Be5 {[%emt 0:00:07]} 26. h3 {[%emt 0:00:17]} Kf7 {[%emt 0:01:15]} 27. Bd2 {[%emt 0:03:22]} Kf6 {[%emt 0:04:18]} 28. Be3 {[%emt 0:03:24]} g5 {[%emt 0:18:25]} 29. Bb6 {[%emt 0:09:08]} h6 {[%emt 0:03:47]} 30. Be3 {[%emt 0:01:56]} Be8 {[%emt 0:04:28]} 1/2-1/2

[Event "Czech-ch U18-20 Open 2022"]
[Site "Spindleruv Mlyn"]
[Date "2022.03.17"]
[Round "9.1"]
[White "Gloser, David"]
[Black "Mica, Marek"]
[Result "0-1"]
[ECO "B12"]
[WhiteElo "2238"]
[BlackElo "2272"]
[Annotator "ChessBase"]
[PlyCount "86"]
[EventDate "2022.03.10"]
[EventType "tourn"]
[EventCountry "CZE"]
[SourceTitle "playchess.com"]
[Source "ChessBase"]
[SourceQuality "1"]
[TimeControl "40/5400+30:1800+30"]

1. e4 {[%emt 0:00:03]} c6 {[%emt 0:00:05]} 2. d4 {[%emt 0:00:04]} d5 {[%emt 0:00:03]} 3. e5 {[%emt 0:00:03]} Bf5 {[%emt 0:00:05]} 4. h4 {[%emt 0:00:03]} h5 {[%emt 0:00:05]} 5. Bg5 {[%emt 0:00:03]} Qb6 {[%emt 0:03:00]} 6. Bd3 {[%emt 0:00:06]} Bxd3 {[%emt 0:00:31]} 7. Qxd3 {[%emt 0:00:05]} e6 {[%emt 0:01:19]} 8. Nd2 {[%emt 0:00:34]} c5 {[%emt 0:00:07]} 9. c4 {[%emt 0:04:04]} Qxb2 {[%emt 0:00:07]} 10. Rd1 {[%emt 0:02:27]} Nc6 {[%emt 0:00:27]} 11. cxd5 {[%emt 0:05:57]} Qxd4 {[%emt 0:06:00]} 12. Qxd4 {[%emt 0:05:47]} Nxd4 {[%emt 0:00:15]} 13. dxe6 {[%emt 0:03:17]} Nxe6 {[%emt 0:00:46]} 14. Ne4 {[%emt 0:03:19]} Be7 {[%emt 0:01:51]} 15. Nf3 {[%emt 0:14:07]} Nh6 {[%emt 0:01:21]} 16. O-O {[%emt 0:08:45]} Nf5 {[%emt 0:02:51]} 17. Rd5 {[%emt 0:03:23]} b6 {[%emt 0:04:29]} 18. Nf6+ {[%emt 0:00:57]} Bxf6 {[%emt 0:07:22]} 19. exf6 {[%emt 0:01:44]} g6 {[%emt 0:00:35]} 20. Re1 {[%emt 0:01:46]} O-O {[%emt 0:03:22]} 21. Ne5 {[%emt 0:02:23]} Rfd8 {[%emt 0:07:42]} 22. Rxd8+ {[%emt 0:03:36]} Rxd8 {[%emt 0:08:48]} 23. Nxg6 {[%emt 0:00:52]} Nxg5 {[%emt 0:00:10]} 24. Ne7+ {[%emt 0:00:14]} Nxe7 {[%emt 0:00:06]} 25. fxe7 {[%emt 0:00:07]} Nh3+ {[%emt 0:02:18]} 26. gxh3 {[%emt 0:05:56]} Re8 {[%emt 0:00:11]} 27. Re5 {[%emt 0:01:19]} Kg7 {[%emt 0:01:40]} 28. Rxh5 {[%emt 0:01:03]} Rxe7 {[%emt 0:00:07]} 29. Kf1 {[%emt 0:00:22]} c4 {[%emt 0:02:06]} 30. Rb5 {[%emt 0:05:27]} c3 {[%emt 0:01:20]} 31. Rb1 {[%emt 0:01:34]} Kg6 {[%emt 0:00:25]} 32. Rc1 {[%emt 0:00:49]} Rc7 {[%emt 0:00:07]} 33. Ke2 {[%emt 0:00:18]} Kh5 {[%emt 0:00:10]} 34. f4 {[%emt 0:01:07]} f5 {[%emt 0:01:18]} 35. Kd3 {[%emt 0:00:30]} c2 {[%emt 0:03:42]} 36. Rxc2 {[%emt 0:01:14]} Rxc2 {[%emt 0:00:05]} 37. Kxc2 {[%emt 0:00:03]} Kxh4 {[%emt 0:00:05]} 38. Kc3 {[%emt 0:00:22]} Kxh3 {[%emt 0:00:07]} 39. Kc4 {[%emt 0:00:16]} Kg4 {[%emt 0:00:13]} 40. Kb5 {[%emt 0:00:12]} Kxf4 {[%emt 0:00:13]} 41. Ka6 {[%emt 0:30:05]} Ke5 {[%emt 0:30:22]} 42. Kxa7 {[%emt 0:00:11]} b5 {[%emt 0:00:33]} 43. a4 {[%emt 0:00:40]} bxa4 {[%emt 0:00:07]} 0-1

[Event "Czech-ch U18-20 Open 2022"]
[Site "Spindleruv Mlyn"]
[Date "2022.03.17"]
[Round "9.3"]
[White "Lajbl, Jan"]
[Black "Vojta, Jakub"]
[Result "1/2-1/2"]
[ECO "C05"]
[WhiteElo "2218"]
[BlackElo "2406"]
[Annotator "ChessBase"]
[PlyCount "79"]
[EventDate "2022.03.10"]
[EventType "tourn"]
[EventCountry "CZE"]
[SourceTitle "playchess.com"]
[Source "ChessBase"]
[SourceQuality "1"]
[TimeControl "40/5400+30:1800+30"]

1. e4 {[%emt 0:03:14]} e6 {[%emt 0:00:04]} 2. d4 {[%emt 0:00:21]} d5 {[%emt 0:00:05]} 3. Nd2 {[%emt 0:00:35]} Nf6 {[%emt 0:00:05]} 4. e5 {[%emt 0:00:03]} Nfd7 {[%emt 0:00:05]} 5. c3 {[%emt 0:00:07]} c5 {[%emt 0:00:05]} 6. f4 {[%emt 0:00:02]} Nc6 {[%emt 0:00:20]} 7. Ndf3 {[%emt 0:00:05]} Qb6 {[%emt 0:00:50]} 8. a3 {[%emt 0:00:43]} cxd4 {[%emt 0:05:03]} 9. cxd4 {[%emt 0:00:06]} a5 {[%emt 0:00:58]} 10. b3 {[%emt 0:00:06]} Be7 {[%emt 0:05:43]} 11. h4 {[%emt 0:00:05]} f5 {[%emt 0:17:26]} 12. h5 {[%emt 0:08:31]} O-O {[%emt 0:02:44]} 13. Bb2 {[%emt 0:11:51]} Ndb8 {[%emt 0:04:24]} 14. Bd3 {[%emt 0:03:53]} Na6 {[%emt 0:02:43]} 15. Nh3 {[%emt 0:08:33]} Nc7 {[%emt 0:02:24]} 16. a4 {[%emt 0:20:58]} Nb4 {[%emt 0:01:38]} 17. Be2 {[%emt 0:01:30]} Bd7 {[%emt 0:01:40]} 18. O-O {[%emt 0:01:04]} Rac8 {[%emt 0:01:18]} 19. Qd2 {[%emt 0:02:34]} Nca6 {[%emt 0:00:01]} 20. Rac1 {[%emt 0:02:34]} Rc6 {[%emt 0:00:28]} 21. Rxc6 {[%emt 0:01:58]} bxc6 {[%emt 0:00:56]} 22. Bc3 {[%emt 0:02:33]} Rc8 {[%emt 0:00:56]} 23. Rc1 {[%emt 0:01:31]} c5 {[%emt 0:02:08]} 24. Kh2 {[%emt 0:01:38]} h6 {[%emt 0:11:51]} 25. dxc5 {[%emt 0:05:29]} Bxc5 {[%emt 0:00:56]} 26. Nd4 {[%emt 0:02:57]} Kh8 {[%emt 0:04:03]} 27. Ng1 {[%emt 0:01:46]} Nb8 {[%emt 0:03:02]} 28. Ngf3 {[%emt 0:03:08]} N8c6 {[%emt 0:00:29]} 29. Bb5 {[%emt 0:03:10]} Bxd4 {[%emt 0:07:10]} 30. Bxd4 {[%emt 0:00:58]} Nxd4 {[%emt 0:00:10]} 31. Qxd4 {[%emt 0:02:34]} Qxd4 {[%emt 0:11:09]} 32. Rxc8+ {[%emt 0:00:03]} Bxc8 {[%emt 0:00:04]} 33. Nxd4 {[%emt 0:00:03]} Kg8 {[%emt 0:00:23]} 34. g4 {[%emt 0:02:16]} fxg4 {[%emt 0:00:44]} 35. Kg3 {[%emt 0:00:04]} Kf7 {[%emt 0:00:36]} 36. Kxg4 {[%emt 0:00:43]} Ke7 {[%emt 0:01:35]} 37. Kf3 {[%emt 0:03:51]} Kf7 {[%emt 0:05:15]} 38. Kg4 {[%emt 0:02:26]} Ke7 {[%emt 0:00:28]} 39. Kf3 {[%emt 0:00:03]} Kf7 {[%emt 0:00:04]} 40. Kg4 {[%emt 0:05:40]} 1/2-1/2

[Event "Czech-ch U18-20 Open 2022"]
[Site "Spindleruv Mlyn"]
[Date "2022.03.17"]
[Round "9.4"]
[White "Stalmach, Richard"]
[Black "Mladek, Richard"]
[Result "0-1"]
[ECO "D31"]
[WhiteElo "2302"]
[BlackElo "2374"]
[Annotator "ChessBase"]
[PlyCount "86"]
[EventDate "2022.03.10"]
[EventType "tourn"]
[EventCountry "CZE"]
[SourceTitle "playchess.com"]
[Source "ChessBase"]
[SourceQuality "1"]
[TimeControl "40/5400+30:1800+30"]

1. d4 {[%emt 0:00:02]} d5 {[%emt 0:00:05]} 2. c4 {[%emt 0:00:22]} e6 {[%emt 0:00:06]} 3. Nc3 {[%emt 0:00:17]} a6 {[%emt 0:00:06]} 4. cxd5 {[%emt 0:01:40]} exd5 {[%emt 0:00:01]} 5. Qb3 {[%emt 0:00:30]} Bd6 {[%emt 0:00:49]} 6. Qxd5 {[%emt 0:04:09]} Nf6 {[%emt 0:02:50]} 7. Qb3 {[%emt 0:05:58]} c5 {[%emt 0:00:24]} 8. dxc5 {[%emt 0:05:11]} Bxc5 {[%emt 0:00:55]} 9. e3 {[%emt 0:01:38]} Nc6 {[%emt 0:03:09]} 10. Be2 {[%emt 0:13:03]} Be6 {[%emt 0:04:24]} 11. Qd1 {[%emt 0:02:32]} Qc7 {[%emt 0:22:56]} 12. Nf3 {[%emt 0:01:47]} Rd8 {[%emt 0:10:52]} 13. Bd2 {[%emt 0:01:08]} O-O {[%emt 0:04:55]} 14. O-O {[%emt 0:01:54]} Ba7 {[%emt 0:01:15]} 15. Rc1 {[%emt 0:03:16]} Bb8 {[%emt 0:01:15]} 16. g3 {[%emt 0:03:27]} Bg4 {[%emt 0:03:35]} 17. Ng5 {[%emt 0:15:32]} Bf5 {[%emt 0:01:59]} 18. Nf3 {[%emt 0:05:35]} Qe7 {[%emt 0:03:07]} 19. Qa4 {[%emt 0:03:12]} Ne5 {[%emt 0:07:33]} 20. Nd4 {[%emt 0:03:00]} Bh3 {[%emt 0:00:06]} 21. Rfd1 {[%emt 0:00:06]} Rd6 {[%emt 0:06:34]} 22. Be1 {[%emt 0:02:05]} b5 {[%emt 0:01:15]} 23. Qc2 {[%emt 0:04:04]} Qb7 {[%emt 0:00:05]} 24. f3 {[%emt 0:01:09]} Rc8 {[%emt 0:02:03]} 25. Qb1 {[%emt 0:06:13]} Rxd4 {[%emt 0:05:56]} 26. Ne4 {[%emt 0:03:38]} Rxc1 {[%emt 0:02:25]} 27. Rxd4 {[%emt 0:00:57]} Rc8 {[%emt 0:06:22]} 28. Nxf6+ {[%emt 0:00:04]} gxf6 {[%emt 0:00:04]} 29. Rh4 {[%emt 0:00:19]} h5 {[%emt 0:03:01]} 30. Rxh5 {[%emt 0:01:16]} Be6 {[%emt 0:01:04]} 31. Qh7+ {[%emt 0:02:06]} Kf8 {[%emt 0:00:00]} 32. Bb4+ {[%emt 0:00:06]} Ke8 {[%emt 0:00:04]} 33. Qh8+ {[%emt 0:00:03]} Kd7 {[%emt 0:00:04]} 34. Qxf6 {[%emt 0:00:03]} Rc1+ {[%emt 0:01:47]} 35. Kf2 {[%emt 0:01:10]} Qd5 {[%emt 0:01:15]} 36. Rh8 {[%emt 0:02:06]} Nc6 {[%emt 0:00:31]} 37. Ba5 {[%emt 0:03:17]} Bc7 {[%emt 0:04:43]} 38. Bc3 {[%emt 0:00:01]} Bb6 {[%emt 0:00:15]} 39. a3 {[%emt 0:04:19]} Rc2 {[%emt 0:00:02]} 40. Kf1 {[%emt 0:02:18]} Bxe3 {[%emt 0:00:14]} 41. h3 {[%emt 0:04:40]} Qc4 {[%emt 0:00:48]} 42. Bxc4 {[%emt 0:02:44]} Bxc4+ {[%emt 0:00:06]} 43. Ke1 {[%emt 0:00:03]} Rc1# {[%emt 0:33:00]} 0-1